fUST/lending_fUST_20250507
["ID","MTS","AMOUNT","RATE_DAILY","PERIOD"]
[360117709,1746556239570,-500.0,0.00019173,2]
[360117710,1746556239580,-151.94334312,0.00019173,2]
[360117711,1746556239589,-502.00234253,0.00019173,2]
[360117712,1746556239598,-500.55364994,0.00019173,2]
[360117713,1746556239607,-500.0,0.00019173,2]
[360117714,1746556239616,-500.0,0.00019173,2]
[360117715,1746556239626,-500.0,0.00019173,2]
[360117716,1746556239635,-521.35594741,0.00019173,2]
[360117717,1746556239645,-500.0,0.00019173,2]
[360117718,1746556239656,-500.0,0.00019173,2]
[360117719,1746556239665,-500.0,0.00019173,2]
[360117720,1746556239674,-519.60099838,0.00019173,2]
[360117721,1746556239683,-500.0,0.00019173,2]
[360117722,1746556239692,-326.71435727,0.00019177,4]
[360117723,1746556239701,-296.88359585,0.00019178,2]
[360117724,1746556239710,-400.0,0.00019178,2]
[360117725,1746556239719,-400.0,0.00019178,2]
[360117726,1746556239729,-400.0,0.00019178,2]
[360117727,1746556239738,-400.0,0.00019178,2]
[360117728,1746556239749,-401.22799411,0.00019178,2]
[360117729,1746556239758,-400.0,0.00019178,2]
[360117730,1746556239767,-401.39677314,0.00019178,2]
[360117731,1746556239777,-401.30935804,0.00019178,2]
[360117732,1746556239786,-400.0,0.00019178,2]
[360117733,1746556239795,-400.0,0.00019178,2]
[360117734,1746556239805,-400.0,0.00019178,2]
[360117735,1746556239815,-400.0,0.00019178,2]
[360117736,1746556239824,-400.0,0.00019178,2]
[360117737,1746556239833,-400.0,0.00019178,2]
[360117738,1746556239842,-400.0,0.00019178,2]
[360117739,1746556239851,-400.0,0.00019178,2]
[360117740,1746556239860,-400.0,0.00019178,2]
[360117741,1746556239869,-418.11095225,0.00019178,2]
[360117742,1746556239880,-451.51,0.00019178,2]
[360117743,1746556239889,-400.0,0.00019178,2]
[360117744,1746556239899,-400.0,0.00019178,2]
[360117745,1746556239908,-400.0,0.00019178,2]
[360117746,1746556239917,-400.0,0.00019178,2]
[360117747,1746556239926,-400.0,0.00019178,2]
[360117748,1746556239936,-526.14095047,0.00019178,2]
[360117749,1746556239945,-400.0,0.00019178,2]
[360117750,1746556239955,-400.0,0.00019178,2]
[360117751,1746556239965,-400.0,0.00019178,2]
[360117752,1746556239975,-400.0,0.00019178,2]
[360117753,1746556239984,-400.0,0.00019178,2]
[360117754,1746556239994,-402.56655068,0.00019178,2]
[360117755,1746556240003,-675.2,0.00019178,2]
[360117756,1746556240012,-400.84686798,0.00019178,2]
[360117757,1746556240022,-400.0,0.00019178,2]
[360117758,1746556240031,-267.4974309,0.00019178,2]
[360117759,1746556240041,-400.0,0.00019178,2]
[360117760,1746556240051,-400.0,0.00019178,2]
[360117761,1746556240061,-400.0,0.00019178,2]
[360117763,1746556240071,-327.56483332,0.00019178,2]
[360117765,1746556240081,-400.0,0.00019178,2]
[360117767,1746556240095,-400.0,0.00019178,2]
[360117768,1746556240106,-502.39141238,0.00019178,2]
[360117769,1746556240116,-401.69087347,0.00019178,2]
[360117771,1746556240127,-400.0,0.00019178,2]
[360117774,1746556240137,-400.0,0.00019178,2]
[360117776,1746556240147,-400.0,0.00019178,2]
[360117778,1746556240158,-250.28177358,0.00019178,2]
[360117780,1746556240168,-400.0,0.00019178,2]
[360117782,1746556240179,-400.0,0.00019178,2]
[360117784,1746556240188,-520.09874239,0.00019178,2]
[360117786,1746556240197,-400.0,0.00019178,2]
[360117788,1746556240206,-400.0,0.00019178,2]
[360117790,1746556240215,-400.0,0.00019178,2]
[360117792,1746556240225,-400.0,0.00019178,2]
[360117794,1746556240235,-408.25050653,0.00019178,2]
[360117796,1746556240244,-400.0,0.00019178,2]
[360117797,1746556240253,-401.14486658,0.00019178,2]
[360117800,1746556240263,-400.0,0.00019178,2]
[360117802,1746556240272,-400.0,0.00019178,2]
[360117804,1746556240284,-400.0,0.00019178,2]
[360117806,1746556240294,-400.0,0.00019178,2]
[360117808,1746556240303,-400.42065851,0.00019178,2]
[360117810,1746556240312,-400.0,0.00019178,2]
[360117812,1746556240322,-514.78859153,0.00019178,2]
[360117814,1746556240331,-400.0,0.00019178,2]
[360117816,1746556240341,-1000.0,0.00019178,2]
[360117818,1746556240350,-509.59,0.00019178,2]
[360117820,1746556240360,-400.0,0.00019178,2]
[360117822,1746556240369,-400.0,0.00019178,2]
[360117824,1746556240379,-400.0,0.00019178,2]
[360117826,1746556240389,-400.0,0.00019178,2]
[360117828,1746556240398,-400.0,0.00019178,2]
[360117830,1746556240407,-400.0,0.00019178,2]
[360117832,1746556240417,-400.0,0.00019178,2]
[360117834,1746556240426,-403.83784036,0.00019178,2]
[360117836,1746556240436,-400.0,0.00019178,2]
[360117838,1746556240446,-400.0,0.00019178,2]
[360117840,1746556240455,-400.0,0.00019178,2]
[360117842,1746556240466,-400.0,0.00019178,2]
[360117844,1746556240475,-400.0,0.00019178,2]
[360117846,1746556240484,-689.89,0.00019178,2]
[360117848,1746556240493,-400.0,0.00019178,2]
[360117850,1746556240503,-400.0,0.00019178,2]
[360117852,1746556240512,-1126.34,0.00019178,2]
[360117854,1746556240522,-176.15756633,0.00019178,2]
[360117856,1746556240533,-400.0,0.00019178,2]
[360117858,1746556240542,-400.0,0.00019178,2]
[360117860,1746556240552,-400.0,0.00019178,2]
[360117862,1746556240560,-400.0,0.00019178,2]
[360117864,1746556240570,-400.0,0.00019178,2]
[360117866,1746556240580,-400.0,0.00019178,2]
[360117868,1746556240590,-400.0,0.00019178,2]
[360117870,1746556240600,-400.0,0.00019178,2]
[360117872,1746556240610,-400.0,0.00019178,2]
[360117874,1746556240619,-401.53584369,0.00019178,2]
[360117876,1746556240628,-400.0,0.00019178,2]
[360117878,1746556240638,-400.0,0.00019178,2]
[360117880,1746556240648,-402.77803583,0.00019178,2]
[360117882,1746556240658,-400.0,0.00019178,2]
[360117884,1746556240667,-400.0,0.00019178,2]
[360117886,1746556240677,-400.0,0.00019178,2]
[360117888,1746556240686,-505.38791715,0.00019178,2]
[360117890,1746556240696,-506.24899933,0.00019178,2]
[360117892,1746556240706,-400.0,0.00019178,2]
[360117894,1746556240715,-332.90977984,0.00019178,2]
[360117896,1746556240725,-400.0,0.00019178,2]
[360117898,1746556240734,-400.0,0.00019178,2]
[360117900,1746556240743,-400.0,0.00019178,2]
[360117902,1746556240753,-400.0,0.00019178,2]
[360117904,1746556240762,-400.0,0.00019178,2]
[360117906,1746556240774,-217.8951033,0.00019178,2]
[360117908,1746556240785,-400.0,0.00019178,2]
[360117910,1746556240794,-404.44071544,0.00019178,2]
[360117912,1746556240803,-400.0,0.00019178,2]
[360117914,1746556240813,-400.0,0.00019178,2]
[360117916,1746556240823,-400.0,0.00019178,2]
[360117918,1746556240832,-400.0,0.00019178,2]
[360117920,1746556240841,-400.0,0.00019178,2]
[360117922,1746556240851,-400.0,0.00019178,2]
[360117924,1746556240860,-400.0,0.00019178,2]
[360117926,1746556240870,-561.19,0.00019178,2]
[360117928,1746556240879,-400.0,0.00019178,2]
[360117930,1746556240888,-400.0,0.00019178,2]
[360117932,1746556240898,-408.95706626,0.00019178,2]
[360117934,1746556240907,-400.0,0.00019178,2]
[360117936,1746556240917,-360.81304676,0.00019178,2]
[360117938,1746556240926,-400.0,0.00019178,2]
[360117940,1746556240936,-400.0,0.00019178,2]
[360117942,1746556240946,-403.64686653,0.00019178,2]
[360117945,1746556240955,-400.86104084,0.00019178,2]
[360117946,1746556240965,-400.0,0.00019178,2]
[360117949,1746556240975,-753.36,0.00019178,2]
[360117951,1746556240984,-400.0,0.00019178,2]
[360117953,1746556240994,-400.0,0.00019178,2]
[360117955,1746556241003,-400.0,0.00019178,2]
[360117957,1746556241012,-402.47607156,0.00019178,2]
[360117959,1746556241023,-400.0,0.00019178,2]
[360117961,1746556241032,-400.0,0.00019178,2]
[360117963,1746556241041,-400.0,0.00019178,2]
[360117965,1746556241051,-400.0,0.00019178,2]
[360117967,1746556241060,-405.32755235,0.00019178,2]
[360117969,1746556241070,-400.0,0.00019178,2]
[360117971,1746556241079,-186.25005525,0.00019178,2]
[360117973,1746556241094,-401.67160681,0.00019178,2]
[360117975,1746556241103,-431.81714596,0.00019178,2]
[360117977,1746556241113,-401.58873496,0.00019178,2]
[360117979,1746556241122,-400.0,0.00019178,2]
[360117981,1746556241132,-400.0,0.00019178,2]
[360117983,1746556241142,-400.0,0.00019178,2]
[360117985,1746556241151,-400.0,0.00019178,2]
[360117987,1746556241162,-402.91911364,0.00019178,2]
[360117989,1746556241172,-460.40549829,0.00019178,2]
[360117991,1746556241182,-409.61226827,0.00019178,2]
[360117993,1746556241191,-400.0,0.00019178,2]
[360117995,1746556241201,-402.9905216,0.00019178,2]
[360117997,1746556241210,-400.0,0.00019178,2]
[360117999,1746556241220,-400.0,0.00019178,2]
[360118001,1746556241229,-400.0,0.00019178,2]
[360118003,1746556241238,-405.8713486,0.00019178,2]
[360118005,1746556241248,-400.0,0.00019178,2]
[360118007,1746556241258,-400.0,0.00019178,2]
[360118009,1746556241267,-506.65,0.00019178,2]
[360118011,1746556241277,-400.0,0.00019178,2]
[360118013,1746556241288,-400.0,0.00019178,2]
[360118015,1746556241298,-400.0,0.00019178,2]
[360118017,1746556241308,-400.0,0.00019178,2]
[360118019,1746556241317,-400.0,0.00019178,2]
[360118021,1746556241327,-206.0059834,0.00019178,2]
[360118023,1746556241336,-400.0,0.00019178,2]
[360118025,1746556241345,-400.0,0.00019178,2]
[360118027,1746556241355,-400.0,0.00019178,2]
[360118029,1746556241365,-781.9,0.00019178,2]
[360118031,1746556241374,-513.7459558,0.00019178,2]
[360118033,1746556241383,-220.53743959,0.00019178,2]
[360118035,1746556241393,-400.0,0.00019178,2]
[360118037,1746556241402,-403.14127598,0.00019178,2]
[360118039,1746556241411,-400.0,0.00019178,2]
[360118041,1746556241420,-400.0,0.00019178,2]
[360118043,1746556241430,-400.0,0.00019178,2]
[360118045,1746556241439,-400.0,0.00019178,2]
[360118047,1746556241448,-495.61,0.00019178,2]
[360118049,1746556241457,-203.49669118,0.00019178,2]
[360118051,1746556241466,-400.0,0.00019178,2]
[360118053,1746556241476,-403.34010556,0.00019178,2]
[360118055,1746556241485,-400.0,0.00019178,2]
[360118057,1746556241495,-400.0,0.00019178,2]
[360118059,1746556241504,-400.0,0.00019178,2]
[360118061,1746556241514,-428.69,0.00019178,2]
[360118063,1746556241523,-400.0,0.00019178,2]
[360118065,1746556241534,-400.0,0.00019178,2]
[360118067,1746556241544,-234.1504007,0.00019178,2]
[360118070,1746556241554,-400.0,0.00019178,2]
[360118071,1746556241564,-400.0,0.00019178,2]
[360118073,1746556241573,-400.0,0.00019178,2]
[360118075,1746556241582,-502.8703402,0.00019178,2]
[360118077,1746556241592,-402.10659483,0.00019178,2]
[360118080,1746556241602,-557.65,0.00019178,2]
[360118082,1746556241612,-400.0,0.00019178,2]
[360118084,1746556241621,-502.1374089,0.00019178,2]
[360118085,1746556241630,-400.0,0.00019178,2]
[360118087,1746556241640,-1052.77,0.00019178,2]
[360118089,1746556241649,-406.79252526,0.00019178,2]
[360118091,1746556241658,-400.0,0.00019178,2]
[360118093,1746556241668,-503.74238831,0.00019178,2]
[360118095,1746556241678,-400.0,0.00019178,2]
[360118097,1746556241687,-400.0,0.00019178,2]
[360118100,1746556241697,-501.97207744,0.00019178,2]
[360118102,1746556241706,-400.0,0.00019178,2]
[360118104,1746556241716,-563.92,0.00019178,2]
[360118106,1746556241725,-400.0,0.00019178,2]
[360118108,1746556241735,-400.0,0.00019178,2]
[360118110,1746556241745,-473.40339252,0.00019178,2]
[360118112,1746556241755,-582.88,0.00019178,2]
[360118114,1746556241764,-153.94588979,0.00019178,2]
[360118116,1746556241773,-401.36702011,0.00019178,2]
[360118118,1746556241787,-400.0,0.00019178,2]
[360118119,1746556241796,-463.5,0.00019178,2]
[360118122,1746556241805,-400.0,0.00019178,2]
[360118123,1746556241815,-449.36,0.00019178,2]
[360118125,1746556241825,-400.0,0.00019178,2]
[360118128,1746556241834,-400.0,0.00019178,2]
[360118129,1746556241845,-1756.62,0.00019178,2]
[360118131,1746556241855,-401.42416385,0.00019178,2]
[360118134,1746556241864,-400.0,0.00019178,2]
[360118136,1746556241874,-400.0,0.00019178,2]
[360118138,1746556241883,-400.0,0.00019178,2]
[360118139,1746556241892,-500.0,0.00019178,2]
[360118142,1746556241902,-500.0,0.00019178,2]
[360118143,1746556241912,-502.79430711,0.00019178,2]
[360118146,1746556241921,-400.0,0.00019178,2]
[360118147,1746556241930,-400.0,0.00019178,2]
[360118150,1746556241940,-400.0,0.00019178,2]
[360118152,1746556241949,-400.0,0.00019178,2]
[360118154,1746556241958,-400.0,0.00019178,2]
[360118156,1746556241968,-400.0,0.00019178,2]
[360118158,1746556241977,-1994.82,0.00019178,2]
[360118160,1746556241986,-400.0,0.00019178,2]
[360118162,1746556241996,-400.0,0.00019178,2]
[360118164,1746556242006,-403.34072284,0.00019178,2]
[360118166,1746556242015,-585.18,0.00019178,2]
[360118168,1746556242024,-400.0,0.00019178,2]
[360118170,1746556242034,-400.0,0.00019178,2]
[360118172,1746556242043,-1428.88,0.00019178,2]
[360118174,1746556242051,-400.0,0.00019178,2]
[360118176,1746556242061,-844.65,0.00019178,2]
[360118178,1746556242071,-400.0,0.00019178,2]
[360118180,1746556242081,-400.0,0.00019178,2]
[360118182,1746556242094,-402.94644609,0.00019178,2]
[360118184,1746556242103,-400.0,0.00019178,2]
[360118186,1746556242112,-585.31,0.00019178,2]
[360118188,1746556242122,-400.0,0.00019178,2]
[360118190,1746556242132,-642.63,0.00019178,2]
[360118192,1746556242141,-400.0,0.00019178,2]
[360118194,1746556242150,-400.0,0.00019178,2]
[360118196,1746556242160,-1026.77,0.00019178,2]
[360118198,1746556242169,-503.78798685,0.00019178,2]
[360118200,1746556242179,-209.64157535,0.00019178,2]
[360118202,1746556242188,-400.0,0.00019178,2]
[360118204,1746556242198,-400.0,0.00019178,2]
[360118207,1746556242207,-625.03,0.00019178,2]
[360118209,1746556242216,-474.87,0.00019178,2]
[360118211,1746556242226,-400.0,0.00019178,2]
[360118212,1746556242235,-2938.9,0.00019178,2]
[360118215,1746556242244,-400.0,0.00019178,2]
[360118217,1746556242254,-400.0,0.00019178,2]
[360118219,1746556242264,-400.0,0.00019178,2]
[360118221,1746556242274,-400.0,0.00019178,2]
[360118223,1746556242284,-257.3214084,0.00019178,2]
[360118225,1746556242294,-400.0,0.00019178,2]
[360118227,1746556242304,-400.0,0.00019178,2]
[360118229,1746556242314,-400.0,0.00019178,2]
[360118231,1746556242324,-400.0,0.00019178,2]
[360118233,1746556242334,-400.0,0.00019178,2]
[360118235,1746556242344,-400.0,0.00019178,2]
[360118237,1746556242353,-608.74,0.00019178,2]
[360118239,1746556242363,-400.0,0.00019178,2]
[360118241,1746556242372,-400.0,0.00019178,2]
[360118243,1746556242382,-235.51168844,0.00019178,2]
[360118246,1746556242392,-400.0,0.00019178,2]
[360118248,1746556242402,-400.0,0.00019178,2]
[360118250,1746556242411,-503.10174603,0.00019178,2]
[360118252,1746556242420,-400.0,0.00019178,2]
[360118253,1746556242429,-400.0,0.00019178,2]
[360118256,1746556242438,-400.0,0.00019178,2]
[360118272,1746556242579,-400.0,0.00019178,2]
[360118275,1746556242599,-503.55866188,0.00019178,2]
[360118277,1746556242608,-289.66766909,0.00019178,2]
[360118279,1746556242617,-400.0,0.00019178,2]
[360118281,1746556242627,-400.0,0.00019178,2]
[360118283,1746556242636,-400.0,0.00019178,2]
[360118286,1746556242646,-1181.51,0.00019178,2]
[360118289,1746556242655,-1181.51,0.00019178,2]
[360118291,1746556242664,-1181.51,0.00019178,2]
[360118293,1746556242674,-1181.51,0.00019178,2]
[360118295,1746556242683,-400.0,0.00019178,2]
[360118297,1746556242693,-1181.51,0.00019178,2]
[360118300,1746556242702,-400.0,0.00019178,2]
[360118302,1746556242712,-1181.51,0.00019178,2]
[360118304,1746556242721,-400.0,0.00019178,2]
[360118307,1746556242730,-1181.51,0.00019178,2]
[360118309,1746556242740,-1181.51,0.00019178,2]
[360118312,1746556242750,-1181.51,0.00019178,2]
[360118316,1746556242759,-1181.51,0.00019178,2]
[360118320,1746556242769,-1181.51,0.00019178,2]
[360118323,1746556242778,-1181.51,0.00019178,2]
[360118326,1746556242788,-401.97286654,0.00019178,2]
[360118329,1746556242797,-1181.51,0.00019178,2]
[360118332,1746556242807,-1181.51,0.00019178,2]
[360118335,1746556242817,-400.0,0.00019178,2]
[360118338,1746556242826,-1181.51,0.00019178,2]
[360118340,1746556242835,-1181.51,0.00019178,2]
[360118342,1746556242845,-1181.51,0.00019178,2]
[360118344,1746556242855,-400.0,0.00019178,2]
[360118346,1746556242865,-1181.51,0.00019178,2]
[360118348,1746556242874,-1181.51,0.00019178,2]
[360118350,1746556242884,-400.0,0.00019178,2]
[360118352,1746556242894,-1181.51,0.00019178,2]
[360118354,1746556242903,-1181.51,0.00019178,2]
[360118356,1746556242913,-1181.51,0.00019178,2]
[360118358,1746556242922,-1181.51,0.00019178,2]
[360118360,1746556242932,-1181.642461,0.00019178,2]
[360118362,1746556242941,-403.76,0.00019178,2]
[360118364,1746556242951,-400.0,0.00019178,2]
[360118366,1746556242960,-400.0,0.00019178,2]
[360118368,1746556242970,-400.0,0.00019178,2]
[360118370,1746556242979,-400.0,0.00019178,2]
[360118372,1746556242988,-920.21,0.00019178,2]
[360118374,1746556242998,-400.0,0.00019178,2]
[360118376,1746556243007,-400.0,0.00019178,2]
[360118378,1746556243016,-282.09599566,0.00019178,2]
[360118380,1746556243026,-400.0,0.00019178,2]
[360118382,1746556243036,-400.0,0.00019178,2]
[360118385,1746556243046,-400.0,0.00019178,2]
[360118387,1746556243055,-400.0,0.00019178,2]
[360118389,1746556243065,-400.0,0.00019178,2]
[360118391,1746556243074,-405.98412562,0.00019178,2]
[360118393,1746556243083,-428.54,0.00019178,2]
[360118395,1746556243096,-400.0,0.00019178,2]
[360118397,1746556243106,-400.76641592,0.00019178,2]
[360118399,1746556243115,-1748.72,0.00019178,2]
[360118401,1746556243125,-400.0,0.00019178,2]
[360118403,1746556243135,-405.49127718,0.00019178,2]
[360118405,1746556243144,-400.0,0.00019178,2]
[360118407,1746556243153,-400.0,0.00019178,2]
[360118409,1746556243163,-400.0,0.00019178,2]
[360118411,1746556243174,-400.0,0.00019178,2]
[360118413,1746556243184,-400.0,0.00019178,2]
[360118415,1746556243193,-400.0,0.00019178,2]
[360118417,1746556243203,-400.0,0.00019178,2]
[360118419,1746556243212,-400.0,0.00019178,2]
[360118421,1746556243222,-400.0,0.00019178,2]
[360118423,1746556243232,-400.0,0.00019178,2]
[360118425,1746556243241,-516.26450725,0.00019178,2]
[360118427,1746556243251,-5262.57,0.00019178,2]
[360118429,1746556243261,-400.0,0.00019178,2]
[360118431,1746556243271,-400.0,0.00019178,2]
[360118433,1746556243281,-3371.95,0.00019178,2]
[360118435,1746556243291,-400.0,0.00019178,2]
[360118437,1746556243301,-1172.28,0.00019178,2]
[360118439,1746556243311,-400.0,0.00019178,2]
[360118441,1746556243321,-417.89,0.00019178,2]
[360118443,1746556243330,-400.0,0.00019178,2]
[360118446,1746556243340,-400.0,0.00019178,2]
[360118448,1746556243350,-407.37330949,0.00019178,2]
[360118450,1746556243360,-374.12205141,0.00019178,2]
[360118452,1746556243369,-400.0,0.00019178,2]
[360118454,1746556243379,-229.43161492,0.00019178,2]
[360118456,1746556243388,-500.0,0.00019178,2]
[360118458,1746556243398,-500.0,0.00019178,2]
[360118460,1746556243407,-500.0,0.00019178,2]
[360118462,1746556243417,-400.0,0.00019178,2]
[360118464,1746556243427,-608.60332497,0.00019178,2]
[360118466,1746556243436,-400.0,0.00019178,2]
[360118468,1746556243446,-400.0,0.00019178,2]
[360118470,1746556243456,-400.0,0.00019178,2]
[360118472,1746556243466,-507.22532263,0.00019178,2]
[360118474,1746556243475,-400.0,0.00019178,2]
[360118476,1746556243484,-400.0,0.00019178,2]
[360118478,1746556243494,-510.74,0.00019178,2]
[360118480,1746556243503,-400.0,0.00019178,2]
[360118482,1746556243513,-403.25345902,0.00019178,2]
[360118484,1746556243522,-400.0,0.00019178,2]
[360118486,1746556243531,-400.0,0.00019178,2]
[360118488,1746556243541,-400.0,0.00019178,2]
[360118490,1746556243550,-400.0,0.00019178,2]
[360118492,1746556243560,-400.0,0.00019178,2]
[360118494,1746556243569,-400.0,0.00019178,2]
[360118496,1746556243579,-975.81,0.00019178,2]
[360118498,1746556243589,-1308.2,0.00019178,2]
[360118500,1746556243598,-400.0,0.00019178,2]
[360118502,1746556243608,-876.3,0.00019178,2]
[360118504,1746556243617,-205.07269539,0.00019178,2]
[360118506,1746556243627,-400.0,0.00019178,2]
[360118508,1746556243637,-400.0,0.00019178,2]
[360118510,1746556243647,-400.0,0.00019178,2]
[360118512,1746556243657,-638.3969674,0.00019178,2]
[360118514,1746556243666,-1706.25,0.00019178,2]
[360118517,1746556243675,-758.88,0.00019178,2]
[360118519,1746556243685,-400.0,0.00019178,2]
[360118521,1746556243694,-400.0,0.00019178,2]
[360118522,1746556243704,-400.0,0.00019178,2]
[360118523,1746556243714,-400.0,0.00019178,2]
[360118524,1746556243724,-400.0,0.00019178,2]
[360118525,1746556243734,-400.0,0.00019178,2]
[360118526,1746556243744,-1752.25,0.00019178,2]
[360118527,1746556243754,-400.0,0.00019178,2]
[360118528,1746556243763,-400.0,0.00019178,2]
[360118529,1746556243773,-291.15370518,0.00019178,2]
[360118530,1746556243783,-400.0,0.00019178,2]
[360118531,1746556243792,-400.0,0.00019178,2]
[360118532,1746556243802,-400.0,0.00019178,2]
[360118533,1746556243812,-400.0,0.00019178,2]
[360118534,1746556243821,-151.0,0.00019178,2]
[360118535,1746556243832,-400.0,0.00019178,2]
[360118536,1746556243842,-400.0,0.00019178,2]
[360118537,1746556243852,-1651.92,0.00019178,2]
[360118539,1746556243862,-895.02,0.00019178,2]
[360118541,1746556243872,-400.0,0.00019178,2]
[360118543,1746556243882,-400.0,0.00019178,2]
[360118545,1746556243891,-400.0,0.00019178,2]
[360118547,1746556243900,-400.0,0.00019178,2]
[360118548,1746556243909,-400.0,0.00019178,2]
[360118550,1746556243919,-400.0,0.00019178,2]
[360118553,1746556243929,-400.0,0.00019178,2]
[360118554,1746556243939,-400.0,0.00019178,2]
[360118556,1746556243948,-400.0,0.00019178,2]
[360118559,1746556243960,-151.0,0.00019178,2]
[360118560,1746556243969,-400.0,0.00019178,2]
[360118563,1746556243979,-400.0,0.00019178,2]
[360118564,1746556243988,-400.0,0.00019178,2]
[360118566,1746556243998,-400.0,0.00019178,2]
[360118568,1746556244008,-400.0,0.00019178,2]
[360118570,1746556244017,-208.10094571,0.00019178,2]
[360118572,1746556244027,-572.25,0.00019178,2]
[360118574,1746556244036,-205.50026287,0.00019178,2]
[360118576,1746556244046,-400.0,0.00019178,2]
[360118578,1746556244055,-872.22,0.00019178,2]
[360118580,1746556244065,-400.0,0.00019178,2]
[360118583,1746556244076,-503.5525166,0.00019178,2]
[360118585,1746556244087,-998.0,0.00019178,2]
[360118587,1746556244098,-400.0,0.00019178,2]
[360118589,1746556244107,-400.0,0.00019178,2]
[360118591,1746556244118,-400.0,0.00019178,2]
[360118593,1746556244127,-5887.41,0.00019178,2]
[360118595,1746556244137,-400.0,0.00019178,2]
[360118597,1746556244147,-400.0,0.00019178,2]
[360118599,1746556244156,-400.0,0.00019178,2]
[360118601,1746556244166,-151.0,0.00019178,2]
[360118603,1746556244175,-506.19767012,0.00019178,2]
[360118605,1746556244186,-400.0,0.00019178,2]
[360118607,1746556244195,-400.0,0.00019178,2]
[360118609,1746556244205,-739.77,0.00019178,2]
[360118611,1746556244215,-400.0,0.00019178,2]
[360118613,1746556244224,-400.0,0.00019178,2]
[360118615,1746556244234,-400.0,0.00019178,2]
[360118617,1746556244244,-400.0,0.00019178,2]
[360118619,1746556244254,-1358.88,0.00019178,2]
[360118621,1746556244264,-400.0,0.00019178,2]
[360118623,1746556244274,-400.0,0.00019178,2]
[360118625,1746556244284,-401.70271421,0.00019178,2]
[360118631,1746556244330,-400.0,0.00019178,2]
[360118633,1746556244339,-400.0,0.00019178,2]
[360118635,1746556244349,-400.0,0.00019178,2]
[360118637,1746556244359,-400.0,0.00019178,2]
[360118639,1746556244368,-400.0,0.00019178,2]
[360118641,1746556244377,-400.0,0.00019178,2]
[360118643,1746556244387,-400.0,0.00019178,2]
[360118645,1746556244397,-400.0,0.00019178,2]
[360118647,1746556244406,-400.0,0.00019178,2]
[360118649,1746556244415,-857.42,0.00019178,2]
[360118651,1746556244424,-400.0,0.00019178,2]
[360118653,1746556244434,-400.0,0.00019178,2]
[360118655,1746556244443,-400.0,0.00019178,2]
[360118657,1746556244452,-518.61,0.00019178,2]
[360118659,1746556244462,-779.44,0.00019178,2]
[360118661,1746556244471,-400.0,0.00019178,2]
[360118663,1746556244480,-151.0,0.00019178,2]
[360118665,1746556244489,-400.0,0.00019178,2]
[360118667,1746556244498,-400.0,0.00019178,2]
[360118669,1746556244508,-400.0,0.00019178,2]
[360118671,1746556244518,-403.35361379,0.00019178,2]
[360118673,1746556244527,-469.45726411,0.00019178,2]
[360118675,1746556244537,-400.0,0.00019178,2]
[360118677,1746556244546,-400.0,0.00019178,2]
[360118679,1746556244556,-553.59,0.00019178,2]